bitfinex-derivatives/quotes_ETHF0:USTF0_20250331
["timestamp","ask_amount","ask_price","bid_price","bid_amount"]
[1743447845116,1.0855,1842.6,1842.5,7.94536]
[1743447846013,1.0855,1842.6,1842.5,4.29336]
[1743447846212,1.0855,1842.6,1842.5,4.96979682]
[1743447846724,1.0855,1842.6,1842.5,3.88423682]
[1743447847220,1.0855,1842.6,1842.5,3.2078]
[1743447847619,2.5897,1842.6,1842.5,4.5753]
[1743447848224,2.5897,1842.6,1842.5,5.25204349]
[1743447848424,2.5897,1842.6,1842.5,2.04424349]
[1743447848916,2.5897,1842.6,1842.5,0.67674349]
[1743447849516,1.08556,1842.5,1842.4,0.00813801]
[1743447849717,2.55776,1842.5,1842.4,2.50075801]
[1743447849922,1.08556,1842.5,1842.4,3.17728517]
[1743447850920,1.08556,1842.5,1842.4,2.09166517]
[1743447851125,1.08556,1842.5,1842.4,3.17728517]
[1743447851326,1.08556,1842.5,1842.4,2.09166517]
[1743447851624,1.08556,1842.5,1842.4,1.41513801]
[1743447852024,1.08556,1842.5,1842.4,0.00813801]
[1743447853924,1.08556,1842.5,1842.4,1.41683801]
[1743447855727,4.29336,1842.5,1842.4,0.00813801]
[1743447855922,1.08556,1842.5,1842.4,0.00813801]
[1743447856128,1.08556,1842.5,1842.4,2.52055801]
[1743447856630,1.08556,1842.5,1842.4,1.43493801]
[1743447857424,1.08556,1842.5,1842.4,2.52055801]
[1743447857633,2.55776,1842.6,1842.5,1.08556]
[1743447857931,1.08556,1842.6,1842.5,2.51236]
[1743447858231,2.2215,1842.7,1842.6,1.0855]
[1743447858232,3.307,1842.7,1842.6,1.0855]
[1743447858425,1.08545,1842.7,1842.6,2.5123]
[1743447858823,1.08542,1842.8,1842.7,1.08545]
[1743447859023,1.08542,1842.8,1842.7,3.29638]
[1743447859024,1.08539,1842.8,1842.7,3.29638]
[1743447859226,2.44823,1843.0,1842.9,1.08533]
[1743447859522,1.08533,1843.0,1842.9,1.08533]
[1743447859826,2.0602,1843.1,1843.0,1.08527]
[1743447860031,3.21593801,1843.3,1843.1,1.08516]
[1743447860324,1.08519,1843.2,1843.1,1.08516]
[1743447860526,2.45618801,1843.3,1843.2,1.08515]
[1743447861127,1.08515,1843.2,1843.1,1.78539]
[1743447862929,1.08521,1843.1,1843.0,3.652]
[1743447863833,2.52401,1843.1,1843.0,3.652]
[1743447864232,1.08527,1843.0,1842.9,1.08532]
[1743447864432,1.08533,1842.9,1842.8,9.38173]
[1743447864632,2.52411,1843.0,1842.9,1.08533]
[1743447865133,1.08533,1842.9,1842.8,10.05716149]
[1743447865335,1.08533,1842.9,1842.8,0.7477]
[1743447865336,2.57443,1842.9,1842.8,0.7477]
[1743447866137,2.57443,1842.9,1842.8,1.83309]
[1743447866637,1.08531,1843.0,1842.9,1.08533]
[1743447866935,1.08531,1843.0,1842.8,0.7477]
[1743447866936,1.08533,1842.9,1842.8,1.83305]
[1743447867133,1.08533,1842.9,1842.8,0.7477]
[1743447867636,1.08539,1842.8,1842.7,4.73741]
[1743447867837,2.47529,1842.8,1842.7,4.73741]
[1743447868029,1.3899,1842.8,1842.7,4.73741]
[1743447868230,1.08537,1842.9,1842.8,1.08539]
[1743447868630,1.08539,1842.8,1842.7,4.73739]
[1743447868829,1.08539,1842.8,1842.7,3.652]
[1743447869036,2.7135,1842.8,1842.5,0.7126]
[1743447869241,1.08556,1842.5,1842.4,0.00813801]
[1743447870341,4.29336,1842.5,1842.4,0.00813801]
[1743447870838,5.02176,1842.5,1842.4,0.00813801]
[1743447871527,10.0872,1842.5,1841.7,3.2078]
[1743447871727,1.0859,1842.0,1841.7,7.5482]
[1743447871930,1.08594,1841.9,1841.8,1.08592]
[1743447872133,1.0859,1842.0,1841.9,1.08589]
[1743447872925,1.08592,1841.9,1841.8,1.79653]
[1743447873129,1.08592,1841.9,1841.8,0.7106]
[1743447873331,1.08592,1841.9,1841.8,1.79658]
[1743447874437,1.08589,1842.0,1841.9,1.08588]
[1743447874635,1.08592,1841.9,1841.8,1.79655]
[1743447875341,1.08589,1842.0,1841.9,1.08589]
[1743447875841,1.08592,1841.9,1841.8,1.79655]
[1743447876538,2.50099,1842.0,1841.9,1.08592]
[1743447876734,1.08592,1841.9,1841.8,1.79654]
[1743447876941,2.501,1842.0,1841.9,1.08592]
[1743447877143,1.08592,1841.9,1841.8,1.79656]
[1743447877344,1.08592,1841.9,1841.8,0.7106]
[1743447877537,1.08592,1841.9,1841.8,2.0876]
[1743447877731,1.08592,1841.9,1841.8,3.17358]
[1743447877938,1.08592,1841.9,1841.8,2.0876]
[1743447878544,1.08592,1841.9,1841.8,3.17353]
[1743447880145,1.08592,1841.9,1841.8,3.17354]
[1743447880637,1.08592,1841.9,1841.8,2.0876]
[1743447881441,1.08592,1841.9,1841.8,1.377]
[1743447881946,1.08592,1841.9,1841.8,2.46298]
[1743447882748,1.08592,1841.9,1841.8,2.46298]
[1743447884647,1.08592,1841.9,1841.8,1.377]
[1743447885349,1.08592,1841.9,1841.8,2.46298]
[1743447886142,1.08592,1841.9,1841.8,1.377]
[1743447886445,4.29372,1841.9,1841.8,1.377]
[1743447887548,1.08592,1841.9,1841.8,1.377]
[1743447888352,1.08592,1841.9,1841.8,2.46295]
[1743447890945,1.4151,1842.0,1841.8,1.377]
[1743447891152,0.00813801,1842.1,1842.0,1.08586]
[1743447891345,1.09393801,1842.1,1842.0,1.77266]
[1743447891546,0.00813801,1842.1,1842.0,1.77266]
[1743447891745,1.09393801,1842.1,1842.0,3.15966]
[1743447895654,0.00813801,1842.1,1842.0,3.15966]
[1743447896047,1.08556,1842.5,1842.4,1.08562]
[1743447896251,1.05242053,1842.5,1842.4,1.08562]
[1743447896656,1.08562,1842.4,1842.3,2.56645]
[1743447896950,1.08562,1842.4,1842.3,1.4808]
[1743447897253,1.08568,1842.3,1842.2,0.00813801]
[1743447897451,3.16988,1842.3,1842.2,0.00813801]
[1743447897651,7.11208,1842.3,1842.2,0.00813801]
[1743447900357,3.16988,1842.3,1842.2,1.09387801]
[1743447900654,3.16988,1842.3,1842.2,0.00813801]
[1743447901057,6.37768,1842.3,1842.2,0.00813801]
[1743447902950,8.87768,1842.3,1842.2,0.00813801]
[1743447903350,6.37768,1842.3,1842.2,0.00813801]
[1743447905956,1.09374801,1842.5,1842.4,1.08562]
[1743447906162,0.00813801,1842.5,1842.4,1.08562]
[1743447906356,1.09369801,1842.5,1842.4,2.44722]
[1743447906661,1.09369801,1842.5,1842.4,1.3616]
[1743447907161,1.09369801,1842.5,1842.4,2.44722]
[1743447908667,1.09369801,1842.5,1842.4,1.3616]
[1743447912963,1.09369801,1842.5,1842.2,4.34813801]
[1743447912964,3.21593801,1842.5,1842.2,0.00813801]
[1743447913156,1.08568,1842.3,1842.2,0.00813801]
[1743447913465,1.08568,1842.3,1842.2,1.09387801]
[1743447913663,1.09376801,1842.5,1842.4,1.08562]
[1743447913962,1.09369801,1842.5,1842.4,1.08562]
[1743447914165,0.00813801,1842.5,1842.4,1.08562]
[1743447914364,1.09369801,1842.5,1842.4,2.53732]
[1743447915167,0.00813801,1842.5,1842.4,2.53732]
[1743447915368,1.09369801,1842.5,1842.4,2.53732]
[1743447915567,1.09369801,1842.5,1842.4,1.4517]
[1743447915759,1.09369801,1842.5,1842.4,2.53732]
[1743447917555,0.00813801,1842.5,1842.4,2.53732]
[1743447918063,1.09369801,1842.5,1842.4,1.4517]
[1743447919260,1.08562,1842.4,1842.3,0.7005]
[1743447919464,2.51742,1842.4,1842.3,2.0948]
[1743447919861,1.08568,1842.3,1842.2,0.00813801]
[1743447920056,6.47608,1842.3,1842.2,0.00813801]
[1743447920459,3.26828,1842.3,1842.2,0.00813801]
[1743447920663,6.47608,1842.3,1842.2,0.00813801]
[1743447926469,6.47608,1842.3,1842.2,8.01e-06]
[1743447933670,1.08568,1842.3,1842.2,8.01e-06]
[1743447934069,1.08568,1842.3,1842.2,2.10740801]
[1743447934881,3.21593801,1842.5,1842.2,5.49997462]
[1743447935173,0.00813801,1842.5,1842.4,1.08562]
[1743447935369,1.09369801,1842.5,1842.4,2.03863661]
[1743447935979,1.09369801,1842.5,1842.4,1.3604]
[1743447937669,1.09369801,1842.5,1842.4,2.44602]
[1743447937875,0.00813801,1842.5,1842.4,2.44602]
[1743447938276,0.00813801,1842.5,1842.4,6.32950902]
[1743447938774,0.00813801,1842.5,1842.4,5.65382]
[1743447939476,0.00813801,1842.5,1842.4,3.12170121]
[1743447940380,0.00813801,1842.5,1842.4,6.32950121]
[1743447941186,1.09369801,1842.5,1842.4,2.03608121]
[1743447941877,1.09369801,1842.5,1842.4,1.3604]
[1743447942484,1.82009801,1842.5,1842.4,1.3604]
[1743447943678,1.09369801,1842.5,1842.4,1.3604]
[1743447943975,1.09369801,1842.5,1842.4,2.44602]
[1743447944274,1.09369801,1842.5,1842.4,1.3604]
[1743447945282,4.30149801,1842.5,1842.4,2.03640183]
[1743447945483,5.04699801,1842.5,1842.4,2.03640183]
[1743447946279,5.04699801,1842.5,1842.4,1.3604]
[1743447948680,1.83919801,1842.5,1842.4,1.3604]
[1743447950485,0.00813801,1842.5,1842.4,1.3604]
[1743447950783,1.08556,1842.5,1842.4,2.44598]
[1743447950982,1.08556,1842.5,1842.4,3.16718]
[1743447951181,1.08556,1842.5,1842.4,3.84313478]
[1743447951583,1.08556,1842.6,1842.5,1.08553]
[1743447951780,1.09369801,1842.6,1842.5,2.55093]
[1743447952280,1.09363801,1842.6,1842.5,2.55093]
[1743447952484,1.09363801,1842.6,1842.5,3.22688478]
[1743447953577,0.00813801,1842.6,1842.5,8.93468478]
[1743447953787,1.08526,1843.1,1843.0,1.08527]
[1743447953980,1.08519,1843.2,1843.1,1.08517]
[1743447954182,0.7041,1843.3,1843.0,1.08522]
[1743447954183,1.08524,1843.1,1843.0,1.08522]
[1743447954385,1.08524,1843.1,1843.0,2.55022]
[1743447954895,1.09331801,1843.2,1843.1,1.08518]
[1743447955381,1.08521,1843.1,1843.0,2.55022]
[1743447956287,0.00813801,1843.2,1843.0,1.465]
[1743447956487,1.09328801,1843.2,1843.1,1.4516]
[1743447957484,1.08527,1843.0,1842.9,0.7348]
[1743447957687,4.29307,1843.0,1842.9,0.71820748]
[1743447958486,5.76457,1843.0,1842.9,0.71820748]
[1743447958779,5.76457,1843.0,1842.8,1.08537]
[1743447958780,1.08539,1842.9,1842.8,1.08537]
[1743447958984,1.08541,1842.8,1842.7,2.53703]
[1743447959181,1.08541,1842.8,1842.7,1.08543]
[1743447959486,1.4398,1842.8,1842.7,1.08545]
[1743447959879,2.52519,1842.8,1842.7,1.08545]
[1743447960081,1.08545,1842.7,1842.6,1.76587]
[1743447960288,2.52522,1842.8,1842.7,1.08545]
[1743447960491,1.08545,1842.7,1842.6,1.76588]
[1743447960981,1.08545,1842.7,1842.6,2.45748]
[1743447961385,1.08545,1842.7,1842.6,1.372]
[1743447961585,1.08545,1842.7,1842.6,0.6916]
[1743447962194,1.08545,1842.7,1842.6,1.7771]
[1743447963703,1.08545,1842.7,1842.6,0.6916]
[1743447965288,1.4398,1842.8,1842.6,0.6916]
[1743447965489,1.08545,1842.7,1842.6,1.77707]
[1743447966885,1.4398,1842.8,1842.7,1.08545]
[1743447966886,2.52523,1842.8,1842.7,1.08545]
[1743447967483,1.08545,1842.7,1842.6,0.6916]
[1743447967687,1.08568,1842.3,1842.2,8.01e-06]
[1743447967894,1.08568,1842.3,1842.2,1.08569801]
[1743447968389,1.08568,1842.3,1842.2,1.76117838]
[1743447968589,1.08568,1842.4,1842.3,1.08563]
[1743447968993,1.08561,1842.5,1842.4,1.08562]
[1743447969393,1.08556,1842.6,1842.5,1.08551]
[1743447970396,7.08477,1842.9,1842.5,1.08551]
[1743447970397,0.7254,1842.9,1842.5,3.2078]
[1743447970594,5.92895801,1843.2,1842.6,2.71364]
[1743447970900,1.08534,1843.0,1842.9,1.0853]
[1743447971987,1.08533,1842.9,1842.8,1.78816]
[1743447972193,1.08537,1842.9,1842.8,1.08534]
[1743447972394,1.08537,1842.9,1842.8,1.78814]
[1743447972602,1.08531,1843.0,1842.9,1.08528]
[1743447972800,1.83012801,1843.2,1843.1,1.08521]
[1743447973001,0.00813801,1843.2,1843.1,4.29301]
[1743447973297,1.08507,1843.4,1843.3,1.08504]
[1743447974395,1.08509,1843.3,1843.2,1.79603801]
[1743447974595,1.08509,1843.3,1843.2,0.00813801]
[1743447975001,1.08509,1843.3,1843.2,1.09328801]
[1743447975692,1.444,1843.4,1843.2,0.00813801]
[1743447975899,2.52903,1843.4,1843.3,1.08509]
[1743447976100,1.08503,1843.4,1843.3,1.08509]
[1743447976601,1.08507,1843.4,1843.3,1.08504]
[1743447977301,1.08509,1843.3,1843.2,1.09325801]
[1743447977796,2.57799,1843.4,1843.3,1.08509]
[1743447980396,2.57793,1843.4,1843.3,1.08509]
[1743447980595,1.4929,1843.4,1843.3,1.08509]
[1743447980794,1.09316801,1843.5,1843.4,1.08503]
[1743447981300,1.08509,1843.3,1843.2,0.00813801]
[1743447981496,5.42581,1843.2,1842.6,4.9951]
[1743447981698,1.08539,1842.8,1842.7,1.35570748]
[1743447982099,1.0855,1842.6,1842.5,3.645]
[1743447982603,2.5744,1842.6,1842.5,1.08556]
[1743447983794,1.08556,1842.5,1842.4,1.09371801]
[1743447984104,2.57445,1842.6,1842.5,1.08556]
[1743447985018,2.57445,1842.6,1842.5,2.55626]
[1743447986104,2.5744,1842.6,1842.5,2.55626]
[1743447986409,2.5744,1842.6,1842.5,3.21567206]
[1743447986913,2.5744,1842.6,1842.5,2.55626]
[1743447989601,1.08538,1842.9,1842.6,2.71377]
[1743447989804,2.48012,1843.0,1842.9,1.08533]
[1743447990008,1.08519,1843.2,1843.1,1.08515]
[1743447990207,1.3948,1843.2,1843.1,1.08515]
[1743447990407,2.1066,1843.4,1843.3,1.08509]
[1743447990613,1.08509,1843.3,1843.2,6.9126]
[1743447991110,3.19167,1843.4,1843.3,1.08509]
[1743447991626,0.00813801,1843.5,1843.4,1.08503]
[1743447991915,2.48793801,1843.5,1843.4,1.08503]
[1743447992117,0.00813801,1843.5,1843.4,1.08503]
[1743447993110,0.00813801,1843.5,1843.4,4.29283]
[1743447993513,1.49513801,1843.5,1843.4,4.29283]
[1743447994013,2.58010801,1843.5,1843.4,3.2078]
[1743447994211,1.49513801,1843.5,1843.4,1.08503]
[1743447994409,1.49513801,1843.5,1843.4,4.29283]
[1743447995216,0.00813801,1843.5,1843.4,4.29283]
[1743447995814,1.09310801,1843.5,1843.4,4.29283]
[1743447996808,1.09310801,1843.5,1843.4,3.2078]
[1743447997009,1.08503,1843.4,1843.3,2.57005]
[1743447997207,2.46203,1843.4,1843.3,2.57005]
[1743447998027,1.377,1843.4,1843.3,2.57005]
[1743447998627,2.46203,1843.4,1843.3,2.57005]
[1743447998824,2.46203,1843.4,1843.3,1.485]
[1743447999029,2.46203,1843.4,1843.3,2.57009]
[1743447999324,1.377,1843.4,1843.3,2.57009]
[1743447999620,1.09315801,1843.5,1843.4,1.08503]
[1743447999828,0.00813801,1843.5,1843.4,5.68543]
[1743448003217,4.97944,1844.0,1843.9,1.08474]
[1743448003420,6.42914,1844.0,1843.9,1.08474]
[1743448003619,2.1366,1844.0,1843.9,1.08474]
[1743448004020,2.1366,1844.0,1843.8,2.44168]
[1743448004315,1.4497,1843.9,1843.8,2.44168]
[1743448004522,2.53444,1843.9,1843.8,1.08478]
[1743448004717,1.4497,1843.9,1843.8,1.08478]
[1743448005829,2.53444,1843.9,1843.8,1.08478]
[1743448006829,1.4497,1843.9,1843.8,1.08478]
[1743448007523,1.4497,1843.9,1843.8,4.29258]
[1743448007726,0.6869,1844.0,1843.9,1.08474]
[1743448007930,1.41853801,1844.1,1844.0,1.08468]
[1743448008422,0.00813801,1844.1,1844.0,1.08468]
[1743448009827,0.00813801,1844.1,1844.0,7.93448]
[1743448017731,0.00813801,1844.1,1844.0,9.41158]
[1743448018236,1.48883801,1844.1,1844.0,9.41158]
[1743448018730,0.00813801,1844.1,1844.0,9.41158]
[1743448019738,1.4807,1844.4,1844.3,1.0845]
[1743448019933,2.56515,1844.4,1844.3,7.9333]
[1743448020234,1.4807,1844.4,1844.3,7.9333]
[1743448022036,2.56515,1844.4,1844.3,7.9333]
[1743448022335,1.4807,1844.4,1844.3,7.9333]
[1743448023136,1.81122801,1844.5,1844.4,1.08445]
[1743448023332,2.22623801,1844.5,1844.4,2.50535]
[1743448023522,3.31062801,1844.5,1844.4,2.50535]
[1743448024028,2.22623801,1844.5,1844.4,2.50535]
[1743448024330,0.00813801,1844.5,1844.4,2.50535]
[1743448024539,0.00813801,1844.5,1844.4,3.23805]
[1743448025332,1.09252801,1844.5,1844.4,6.14535]
[1743448025536,0.00813801,1844.5,1844.2,1.08451]
[1743448025746,1.08456,1844.2,1844.1,3.2078]
[1743448026036,3.2078,1844.2,1843.8,1.5002]
[1743448026238,2.122,1844.1,1843.7,0.00813801]
[1743448026536,1.0848,1843.8,1843.7,0.00813801]
[1743448027737,1.0848,1843.8,1843.7,1.09299801]
[1743448028438,1.3746,1843.9,1843.8,1.0848]
[1743448028637,1.3746,1843.9,1843.8,2.4683]
[1743448030136,2.45934,1843.9,1843.8,2.4683]
[1743448031432,1.0848,1843.8,1843.7,3.21593801]
[1743448031636,2.448,1843.8,1843.7,0.00813801]
[1743448033540,5.6558,1843.8,1843.7,0.00813801]
[1743448034043,1.08497,1843.5,1843.4,1.08498]
[1743448034336,1.08497,1843.5,1843.4,2.53898]
[1743448034743,4.09341,1843.6,1843.2,5.03141]
[1743448034947,1.08509,1843.3,1843.2,10.12541]
[1743448035138,1.08509,1843.3,1843.2,10.13354801]
[1743448035340,1.08509,1843.3,1843.2,0.00813801]
[1743448035538,2.71289,1843.2,1842.3,0.43541407]
[1743448035735,1.08556,1842.6,1842.5,1.08556]
[1743448035941,1.08554,1842.6,1842.5,1.08555]
[1743448036244,1.08556,1842.5,1842.4,2.54268]
[1743448036545,2.46926,1842.5,1842.4,2.54268]
[1743448036945,1.3837,1842.5,1842.4,2.54268]
[1743448037144,1.3837,1842.5,1842.4,5.75048]
[1743448037443,0.00813801,1842.6,1842.5,1.08556]
[1743448037645,0.00813801,1842.6,1842.5,2.54266]
[1743448038747,1.09363801,1842.6,1842.5,1.4571]
[1743448039244,0.00813801,1842.6,1842.3,0.00813801]
[1743448039439,1.08586,1842.0,1841.9,1.08588]
[1743448039747,1.08583,1842.1,1842.0,1.08586]
[1743448040046,1.394,1842.2,1841.9,1.08588]
[1743448040346,2.47986,1842.0,1841.9,4.29372]
[1743448040746,1.394,1842.0,1841.9,4.29372]
[1743448041444,2.47986,1842.0,1841.9,4.29372]
[1743448041753,1.394,1842.0,1841.9,4.29372]
[1743448043040,2.47986,1842.0,1841.9,4.29372]
[1743448043245,1.394,1842.0,1841.9,4.29372]
[1743448044146,2.47986,1842.0,1841.9,3.2078]
[1743448044647,1.08592,1841.9,1841.8,0.00813801]
[1743448044844,2.45522,1841.9,1841.8,0.00813801]
[1743448045057,1.3693,1841.9,1841.8,1.09411801]
[1743448045846,1.08585,1842.1,1842.0,1.08586]
[1743448046045,1.3693,1842.1,1842.0,1.08586]
[1743448046746,2.4551,1842.1,1842.0,1.08586]
[1743448047149,1.08587,1842.0,1841.9,1.08588]
[1743448047347,1.3693,1842.0,1841.9,1.08588]
[1743448049948,4.3377,1842.3,1842.1,1.08575]
[1743448049949,1.08575,1842.2,1842.1,1.08575]
[1743448050144,2.48461053,1842.2,1842.1,1.08575]
[1743448050346,1.432,1842.2,1842.1,1.08575]
[1743448050846,0.6957,1842.3,1842.2,1.08574]
[1743448051350,1.78138,1842.3,1842.2,1.08574]
[1743448051550,3.17698,1842.3,1842.2,1.08574]
[1743448051853,2.0913,1842.3,1842.2,1.08574]
[1743448052055,2.48127,1842.4,1842.3,1.08565]
[1743448052451,1.08571,1842.3,1842.2,1.0857]
[1743448052643,2.48131,1842.3,1842.2,1.0857]
[1743448053043,1.3956,1842.3,1842.2,1.0857]
[1743448054048,2.48128,1842.3,1842.2,1.0857]
[1743448054863,2.48128,1842.3,1842.2,1.08574]
[1743448056152,1.0858,1842.1,1842.0,1.7788]
[1743448056448,1.0858,1842.1,1842.0,1.74566053]
[1743448057747,1.0858,1842.1,1842.0,3.13716053]
[1743448058350,2.4603,1842.1,1842.0,1.3915]
[1743448059351,1.08586,1842.0,1841.9,3.2078]
[1743448059559,1.08592,1841.9,1841.8,1.39963801]
[1743448060756,1.08592,1841.9,1841.8,2.48561801]
[1743448062957,1.08592,1841.9,1841.8,1.39963801]
[1743448063453,1.08592,1841.9,1841.8,0.00813801]
[1743448063654,1.08592,1841.9,1841.8,2.56741801]
[1743448064459,1.08592,1841.9,1841.8,1.48143801]
[1743448064858,2.50052,1841.9,1841.8,1.48143801]
[1743448065080,2.50052,1841.9,1841.8,0.00813801]
[1743448066354,2.50052,1841.9,1841.8,1.49023801]
[1743448067755,2.50052,1841.9,1841.8,2.57621801]
[1743448068151,2.50052,1841.9,1841.8,1.49023801]
[1743448068865,2.50052,1841.9,1841.8,2.57621801]
[1743448070857,2.50052,1841.9,1841.8,1.49023801]
[1743448071056,2.50052,1841.9,1841.8,2.57621801]
[1743448071452,2.50052,1841.9,1841.8,3.29275786]
[1743448071757,2.50052,1841.9,1841.8,1.49023801]
[1743448071963,2.50052,1841.9,1841.8,2.57621801]
[1743448072551,2.50052,1841.9,1841.8,3.29276052]
[1743448073063,2.50052,1841.9,1841.8,2.57621801]
[1743448075757,2.50052,1841.9,1841.8,1.49023801]
[1743448075954,2.50052,1841.9,1841.8,0.00813801]
[1743448075955,5.70832,1841.9,1841.8,0.00813801]
[1743448081559,2.50052,1841.9,1841.8,0.00813801]
[1743448081970,2.50052,1841.9,1841.8,1.39283801]
[1743448083272,1.08592,1841.9,1841.8,2.47881801]
[1743448083668,1.08578,1842.2,1842.1,1.08575]
[1743448083959,1.08584,1842.1,1842.0,1.08581]
[1743448084165,1.08584,1842.1,1842.0,2.51771]
[1743448084364,1.08584,1842.1,1842.0,3.22271]
[1743448085276,1.0858,1842.1,1842.0,3.22271]
[1743448085769,1.08577,1842.2,1842.1,1.08574]
[1743448085976,1.05263053,1842.2,1842.1,2.51764]
[1743448087376,1.05263053,1842.2,1842.1,1.4319]
[1743448087575,1.08586,1842.0,1841.9,3.642]
[1743448087777,1.08584,1842.1,1841.9,4.35226053]
[1743448088078,1.08584,1842.1,1842.0,1.08586]
[1743448088479,1.08581,1842.2,1842.1,1.08574]
[1743448088783,1.05267053,1842.2,1842.1,1.08574]
[1743448090178,1.08577,1842.2,1842.1,1.08575]
[1743448090676,1.08586,1842.1,1842.0,1.08584]
[1743448090878,1.08571,1842.3,1842.2,1.08568]
[1743448091180,1.08577,1842.2,1842.1,1.08575]
[1743448091382,1.08577,1842.2,1842.1,2.44735]
[1743448091979,1.08574,1842.2,1842.1,1.3616]
[1743448092181,1.08574,1842.2,1842.1,2.4474]
[1743448092982,7.28874,1842.3,1841.9,0.7434]
[1743448093176,1.08586,1842.0,1841.9,3.3286]
[1743448093384,1.08586,1842.0,1841.9,3.29546053]
[1743448093684,2.55616,1842.0,1841.9,3.29546053]
[1743448094989,2.55616,1842.0,1841.9,2.20956053]
[1743448095991,1.08592,1841.9,1841.8,3.21593801]
[1743448096182,2.54372,1841.9,1841.8,4.68493801]
[1743448096575,5.75152,1841.9,1841.8,0.00813801]
[1743448097788,5.75152,1841.9,1841.8,1.09411801]
[1743448098086,5.75152,1841.9,1841.8,2.56311801]
[1743448098389,5.75152,1841.9,1841.8,1.47713801]
[1743448098587,2.54372,1841.9,1841.8,1.47713801]
[1743448099284,2.54372,1841.9,1841.8,2.56311801]
[1743448100690,2.54372,1841.9,1841.8,1.47713801]
[1743448100892,2.54372,1841.9,1841.8,2.56311801]
[1743448101084,1.08592,1841.9,1841.8,2.56311801]
[1743448101284,1.08589,1842.0,1841.9,1.08587]
[1743448101588,1.08589,1842.0,1841.9,2.48457]
[1743448102093,1.08589,1842.0,1841.9,1.3987]
[1743448102294,2.51169,1842.0,1841.9,2.48462]
[1743448102791,2.51169,1842.0,1841.9,1.3987]
[1743448102993,2.51169,1842.0,1841.9,2.48462]
[1743448104386,2.51169,1842.0,1841.9,1.3987]
[1743448104592,2.51169,1842.0,1841.9,2.48462]
[1743448104793,1.4258,1842.0,1841.9,2.48462]
[1743448104995,1.08583,1842.1,1842.0,1.08586]
[1743448105191,2.51163,1842.1,1842.0,2.59256]
[1743448105597,2.51163,1842.1,1842.0,1.5067]
[1743448107509,2.51163,1842.1,1842.0,2.59256]
[1743448107809,2.51163,1842.1,1842.0,1.5067]
[1743448108001,2.51163,1842.1,1842.0,2.59256]
[1743448108197,1.08583,1842.1,1842.0,2.59256]
[1743448108893,2.53763,1842.1,1842.0,2.59256]
[1743448109100,1.4518,1842.1,1842.0,2.59256]
[1743448109305,1.78784,1842.2,1842.1,1.0858]
[1743448109605,1.78784,1842.2,1842.1,3.1712]
[1743448110301,1.08559,1842.5,1842.1,2.0854]
[1743448110508,2.53739,1842.5,1842.4,1.08562]
[1743448111299,2.53739,1842.5,1842.3,1.4025]
[1743448111300,1.08562,1842.4,1842.3,2.48816]
[1743448111498,2.52572,1842.4,1842.3,1.4025]
[1743448112301,2.52572,1842.4,1842.3,2.48818]
[1743448113203,2.52572,1842.4,1842.3,1.4025]
[1743448113802,2.52572,1842.4,1842.3,2.48818]
[1743448114016,1.4401,1842.4,1842.3,2.48818]
[1743448114207,2.52572,1842.4,1842.3,2.48818]
[1743448114718,1.08574,1842.2,1842.1,3.8907]
[1743448114910,1.08587,1842.0,1841.9,4.72587]
[1743448115224,1.4212,1842.1,1842.0,1.0858]
[1743448115510,1.08574,1842.3,1842.2,1.08571]
[1743448116107,1.08574,1842.2,1842.1,2.51804]
[1743448116303,2.50694,1842.2,1842.1,2.51804]
[1743448116908,7.34349,1842.2,1841.8,0.70783801]
[1743448117209,1.08588,1842.0,1841.9,1.08586]
[1743448117409,2.50705,1842.1,1842.0,1.08586]
[1743448117801,1.4212,1842.1,1842.0,1.08586]
[1743448118012,1.4212,1842.1,1842.0,2.51336]
[1743448118310,2.507,1842.1,1842.0,2.51336]
[1743448119509,1.4212,1842.1,1842.0,2.51336]
[1743448119899,2.507,1842.1,1842.0,2.51336]
[1743448120421,1.4212,1842.1,1842.0,2.51336]
[1743448120711,1.08579,1842.2,1842.1,1.0858]
[1743448120912,2.52599,1842.2,1842.1,2.5222]
[1743448121514,3.8886,1842.4,1842.1,2.5222]
[1743448121705,2.52591,1842.3,1842.2,3.2186]
[1743448122923,2.52591,1842.3,1842.2,2.1329]
[1743448123918,2.52591,1842.3,1842.2,3.21864]
[1743448129319,2.52591,1842.3,1842.2,2.1329]
[1743448129816,1.4402,1842.3,1841.8,3.21593801]
[1743448130009,1.08592,1841.9,1841.8,0.00813801]
[1743448130905,2.49352,1841.9,1841.8,0.00813801]
[1743448131418,2.49352,1841.9,1841.8,1.40793801]
[1743448138122,2.49352,1841.9,1841.8,0.00813801]
[1743448138325,5.70132,1841.9,1841.8,0.00813801]
[1743448139911,5.70132,1841.9,1841.8,8.01e-06]
[1743448140120,1.08626,1841.4,1841.3,1.08624]
[1743448140420,1.08626,1841.4,1840.5,3.2078]
[1743448140421,1.08668,1840.7,1840.5,3.2078]
[1743448140613,3.2078,1841.2,1840.6,0.71824251]
[1743448140822,1.0864,1841.1,1840.7,9.56336]
[1743448141123,1.08651,1840.9,1840.7,3.639]
[1743448141326,1.08651,1840.9,1840.8,2.1704]
[1743448142318,2.51191,1840.9,1840.8,2.1704]
[1743448143420,1.4254,1840.9,1840.8,3.25697]
[1743448143622,2.51191,1840.9,1840.8,2.1704]
[1743448143821,1.08651,1840.9,1840.8,3.25697]
[1743448144027,1.08651,1840.9,1840.8,2.1704]
[1743448144530,1.4254,1841.0,1840.8,2.1704]
[1743448144726,2.51185,1841.0,1840.9,1.4981]
[1743448145233,0.00813801,1841.1,1841.0,1.08645]
[1743448145530,0.00813801,1841.1,1841.0,5.42805]
[1743448145826,0.00813801,1841.1,1841.0,6.92615]
[1743448155128,1.08611,1841.6,1841.5,1.08606]
[1743448155925,1.08611,1841.6,1841.5,2.49106]